fUST/lending_fUST_20250202
["ID","MTS","AMOUNT","RATE_DAILY","PERIOD"]
[351264887,1738499432681,-151.0,0.000164,2]
[351264888,1738499432692,-151.0,0.000164,2]
[351264889,1738499432703,-151.0,0.000164,2]
[351264890,1738499432712,-151.0,0.000164,2]
[351264891,1738499432722,-500.0,0.00016436,2]
[351264892,1738499432731,-500.0,0.00016436,2]
[351264893,1738499432741,-500.0,0.00016436,2]
[351264894,1738499432751,-500.0,0.00016436,2]
[351264895,1738499432761,-172.9302875,0.00016436,2]
[351264896,1738499432770,-144675.32202342,0.00016437,4]
[351264910,1738499438460,-6351.28166407,0.00016437,4]
[351265021,1738499446558,-453.55777226,0.00015299,2]
[351265022,1738499446568,-241.43669861,0.00015299,2]
[351265023,1738499446578,-296.25552913,0.00016437,4]
[351265025,1738499555068,270.145987,0.00014974,2]
[351265034,1738499650133,3410.91962651,0.00015011,2]
[351265035,1738499658284,574.546196,0.00015011,2]
[351265048,1738500034630,540.3224408,0.00015011,2]
[351265049,1738500045821,185.001106,0.00013699,2]
[351265058,1738500291018,24900.0,0.0001477,2]
[351265059,1738500311839,250.0,0.0001484,2]
[351265061,1738500342952,199.464488,0.00013973,2]
[351265067,1738500589362,274.614871,0.00014717,2]
[351265126,1738500636570,-500.0,0.0001506,2]
[351265128,1738500636579,-500.0,0.0001506,2]
[351265130,1738500636589,-300.0,0.00015162,2]
[351265131,1738500636598,-673.16,0.00015163,2]
[351265135,1738500636630,-15563.6396341,0.00015163,2]
[351265137,1738500636639,-273.2014438,0.00015205,2]
[351265139,1738500636649,-500.0,0.00015342,2]
[351265141,1738500636658,-500.0,0.0001545,2]
[351265143,1738500636668,-369.33223271,0.000159,2]
[351265145,1738500636677,-1000.0,0.00016,16]
[351265146,1738500636686,-8828.29999998,0.00016,2]
[351265148,1738500636696,-12970.71158389,0.0001601,2]
[351265150,1738500636706,-6481.32593798,0.000161,2]
[351265151,1738500636718,-1195.1999999,0.000161,2]
[351265153,1738500636729,-1151.7740621,0.000161,2]
[351265154,1738500636739,-164.426,0.0001615,2]
[351265155,1738500636748,-274.61078214,0.00016186,2]
[351265163,1738500638330,-94.72145056,0.00016186,2]
[351265164,1738500638340,-877.87500905,0.000162,2]
[351265176,1738500638721,-6748.36431412,0.000162,2]
[351265178,1738500638733,-1202.06067681,0.000162,2]
[351265179,1738500638743,-929.453,0.00016238,2]
[351265181,1738500638753,-500.0,0.00016263,2]
[351265182,1738500638762,-444.35380614,0.000163,2]
[351265184,1738500638774,-4014.15386362,0.000163,2]
[351265186,1738500638786,-392.58713336,0.000163,2]
[351265188,1738500638798,-2264.96738624,0.000163,2]
[351265190,1738500638809,-5163.2732914,0.000163,2]
[351265192,1738500638819,-542.68270637,0.00016336,2]
[351265193,1738500638828,-37055.74407081,0.00016337,2]
[351265195,1738500638839,-10139.78854171,0.00016338,7]
[351265197,1738500638849,-155.8340258,0.00016356,2]
[351265198,1738500638859,-153.0,0.00016356,2]
[351265200,1738500638868,-306.0,0.00016356,2]
[351265202,1738500638879,-306.0,0.00016356,2]
[351265203,1738500638897,-271.7011981,0.00016356,2]
[351265205,1738500638908,-154.4475723,0.00016356,2]
[351265207,1738500638919,-153.0,0.00016356,2]
[351265208,1738500638928,-215.6245758,0.00016356,2]
[351265210,1738500638938,-215.6245758,0.00016356,2]
[351265212,1738500638947,-154.4475723,0.00016356,2]
[351265214,1738500638957,-154.4475723,0.00016356,2]
[351265216,1738500638967,-153.0,0.00016356,2]
[351265217,1738500638977,-215.6245758,0.00016356,2]
[351265218,1738500638987,-215.6245758,0.00016356,2]
[351265219,1738500638996,-154.4475723,0.00016356,2]
[351265220,1738500639006,-215.6245758,0.00016356,2]
[351265221,1738500639016,-154.4475723,0.00016356,2]
[351265222,1738500639026,-215.6245758,0.00016356,2]
[351265223,1738500639035,-154.4475723,0.00016356,2]
[351265224,1738500639046,-215.6245758,0.00016356,2]
[351265225,1738500639056,-154.4475723,0.00016356,2]
[351265226,1738500639067,-154.4475723,0.00016356,2]
[351265227,1738500639078,-154.4475723,0.00016356,2]
[351265228,1738500639092,-152.0,0.00016389,2]
[351265229,1738500639102,-151.0,0.000164,2]
[351265230,1738500639113,-151.0,0.000164,2]
[351265231,1738500639123,-18828.29999998,0.000164,2]
[351265232,1738500639133,-2657.11172496,0.000164,2]
[351265233,1738500639144,-407.10778927,0.00016436,2]
[351265234,1738500639154,-208.60649891,0.00016436,2]
[351265235,1738500639164,-500.9899624,0.00016436,2]
[351265236,1738500639174,-115635.29944788,0.00016437,4]
[351265237,1738500639187,-475.67,0.00016437,4]
[351265238,1738500639199,-799.8603524,0.00016437,4]
[351265239,1738500639211,-1078.107955,0.00016437,4]
[351265240,1738500639222,-3333.03930765,0.00016437,4]
[351265241,1738500639233,-197356.03435351,0.00016437,4]
[351265263,1738500640871,-49793.39994,0.00016437,4]
[351265264,1738500640882,-4560.76418114,0.00016437,4]
[351265265,1738500640904,-3867.87095851,0.00016437,4]
[351265266,1738500640915,-4351.44815213,0.00016437,4]
[351265267,1738500640926,-3165.08113416,0.00016437,4]
[351265268,1738500640937,-7671.99999997,0.00016437,4]
[351265269,1738500640957,-1336.79550765,0.00016437,4]
[351265300,1738500643762,-4767.87687,0.00016437,4]
[351265301,1738500643821,-1063.79863551,0.00016437,4]
[351265302,1738500643836,-1264.44,0.00016437,4]
[351265303,1738500643880,-10150.46438921,0.00016437,4]
[351265304,1738500643892,-1779.17,0.00016437,4]
[351265330,1738500646822,-985.7,0.00016437,4]
[351265331,1738500646836,-889.98821998,0.00016437,4]
[351265337,1738500915477,185.001106,0.00013699,2]
[351265344,1738501360999,204.578917,0.00013973,2]
[351265350,1738501710412,704.42204817,0.00015011,2]
[351265351,1738501728339,274.614872,0.00014864,2]
[351265356,1738501780890,185.001106,0.00013699,2]
[351265399,1738501832075,-250.0,0.00015293,2]
[351265400,1738501832085,-500.0,0.00015342,2]
[351265402,1738501832095,-300.0,0.00015358,2]
[351265403,1738501832104,-1250.63784516,0.00015359,2]
[351265405,1738501832116,-23649.36215484,0.00015359,2]
[351265407,1738501832126,-13255.3373504,0.00016031,2]
[351265408,1738501832136,-696.97983434,0.0001605,2]
[351265410,1738501832145,-162.723,0.0001615,2]
[351265412,1738501832155,-151.0,0.000163,2]
[351265413,1738501832165,-696.9798343,0.00016314,2]
[351265415,1738501832175,-10595.01782612,0.00016338,2]
[351265457,1738501836233,-276.41,0.00016338,2]
[351265458,1738501836245,-1967.3,0.00016338,2]
[351265476,1738501837798,-1393.82489031,0.00016338,2]
[351265477,1738501837859,-2622.40638152,0.00016338,2]
[351265478,1738501837872,-151.0,0.000164,2]
[351265479,1738501837884,-151.0,0.000164,2]
[351265480,1738501837896,-151.0,0.000164,2]
[351265482,1738501837911,-151.0,0.000164,2]
[351265483,1738501837923,-3000.0,0.000164,2]
[351265485,1738501837936,-3515.10000006,0.000164,2]
[351265487,1738501837950,-239.0,0.000164,2]
[351265489,1738501837960,-3000.0,0.0001641,2]
[351265491,1738501837971,-1592.7758007,0.00016412,2]
[351265492,1738501837983,-3000.0,0.0001642,2]
[351265495,1738501837994,-1643.27752575,0.0001643,2]
[351265499,1738501838008,-1356.72247425,0.0001643,2]
[351265501,1738501838019,-8498.37633113,0.00016437,4]
[351265503,1738501838033,-355.44480703,0.00016437,4]
[351265505,1738501838058,-3355.24629034,0.00016437,4]
[351265516,1738501840243,-359.50100004,0.00016437,4]
[351265517,1738501840260,-32920.79904,0.00016437,4]
[351265518,1738501840272,-19687.0,0.00016437,4]
[351265519,1738501840290,-19666.6,0.00016437,4]
[351265551,1738501842925,-2200.0000005,0.00016437,4]
[351265580,1738501845950,-207.37578179,0.00016436,2]
[351265581,1738501845960,-9073.59524821,0.00016437,4]
[351265582,1738501845971,-9840.0,0.00016437,4]
[351265583,1738501845983,-370.21879101,0.00016437,4]
[351265584,1738501846017,-983.8,0.00016437,4]
[351265587,1738502022444,331.92,0.00010959,2]
[351265588,1738502060053,1000.0,0.00018,30]
[351265589,1738502063731,699.19,0.00010959,2]
[351265590,1738502093758,1000.0,0.00018,30]
[351265591,1738502095215,160.07,0.00010959,2]
[351265592,1738502096708,1000.0,0.00018,30]
[351265593,1738502105858,800.38,0.00010959,2]
[351265595,1738502130892,1000.0,0.00018,30]
[351265596,1738502154128,1000.0,0.00018,30]
[351265597,1738502304332,209.295417,0.00013973,2]
[351265603,1738502790169,2685.94089327,0.000172,24]
[351265626,1738502926698,1459.34839462,0.00013,2]
[351265717,1738503037954,-250.0,0.00015085,2]
[351265719,1738503037964,-208.77534555,0.00015101,2]
[351265721,1738503037973,-300.0,0.00015262,2]
[351265723,1738503037983,-19554.675526,0.00015263,2]
[351265725,1738503037993,-5601.20044614,0.000153,2]
[351265727,1738503038002,-500.0,0.00015342,2]
[351265729,1738503038011,-162.604,0.0001562,2]
[351265731,1738503038021,-522.73487576,0.00015982,2]
[351265733,1738503038030,-13255.3373504,0.00016051,2]
[351265735,1738503038039,-354.4946044,0.00016082,2]
[351265737,1738503038048,-354.4946044,0.00016082,2]
[351265739,1738503038057,-353.1713514,0.000161,2]
[351265741,1738503038066,-522.73487572,0.00016256,2]
[351265743,1738503038076,-2293.466863,0.00016271,2]
[351265745,1738503038086,-25108.14032114,0.00016338,2]
[351265747,1738503038095,-153.0,0.00016356,2]
[351265749,1738503038104,-154.1761492,0.00016356,2]
[351265751,1738503038113,-218.246188,0.00016356,2]
[351265753,1738503038122,-153.0,0.00016356,2]
[351265755,1738503038131,-153.0,0.00016356,2]
[351265757,1738503038140,-153.0,0.00016356,2]
[351265759,1738503038150,-153.0,0.00016356,2]
[351265762,1738503038163,-153.0,0.00016356,2]
[351265765,1738503038172,-179.8038455,0.00016435,2]
[351265769,1738503038182,-27830.47716084,0.00016437,4]
[351265887,1738503040141,-179.8038455,0.00016435,2]
[351265888,1738503040151,-19535.79615451,0.00016437,4]
[351265889,1738503040215,-5676.71307813,0.00016437,4]
[351265891,1738503040229,-7920.78083876,0.00016437,4]
[351265973,1738503046045,-500.0,0.00016436,2]
[351265974,1738503046054,-437.04330956,0.00016436,2]
[351265975,1738503046064,-500.0,0.00016436,2]
[351265976,1738503046074,-224.12993575,0.00016436,2]
[351265977,1738503046124,-275.87006425,0.00016436,2]
[351265978,1738503046133,-6704.28126575,0.00016437,4]
[351266018,1738503087190,160.27220844,0.00014985,2]
[351266019,1738503136689,209.78641233,0.00014985,2]
[351266020,1738503169691,213.651382,0.00013973,2]
[351266049,1738503892783,1300.56,0.00015011,2]
[351266050,1738504078319,250.0,0.00014329,2]
[351266051,1738504084763,1376.4081157,0.0001428,2]
[351266067,1738504112980,24880.0,0.00014286,2]
[351266071,1738504143473,217.660605,0.00013973,2]
[351266073,1738504160544,490.9970755,0.00014835,2]
[351266076,1738504227070,1821.036023,0.00014972,2]
[351266128,1738504232343,-264.349494,0.00015104,2]
[351266130,1738504232353,-192.43348099,0.000152,2]
[351266132,1738504232362,-684.33570565,0.00015242,2]
[351266134,1738504232371,-7532.91626962,0.00015267,2]
[351266136,1738504232380,-500.0,0.00015342,2]
[351266138,1738504232390,-300.0,0.00015514,2]
[351266140,1738504232399,-161.418,0.0001562,2]
[351266142,1738504232408,-818.121,0.0001562,2]
[351266144,1738504232417,-156.43587552,0.0001562,2]
[351266145,1738504232426,-684.33570558,0.00015622,2]
[351266147,1738504232435,-13255.3373504,0.00015929,2]
[351266150,1738504232445,-183.59344754,0.00016,2]
[351266152,1738504232455,-684.33570558,0.00016001,2]
[351266153,1738504232464,-1146.7334315,0.00016271,2]
[351266156,1738504232474,-998.62743905,0.00016337,2]
[351266159,1738504232484,-998.62743904,0.00016337,2]
[351266161,1738504232493,-998.62743904,0.00016338,2]
[351266163,1738504232503,-998.62743904,0.00016338,2]
[351266165,1738504232513,-998.62743904,0.00016338,2]
[351266167,1738504232523,-580.99810104,0.00016338,7]
[351266169,1738504232532,-153.0,0.00016356,2]
[351266171,1738504232541,-153.0,0.00016356,2]
[351266173,1738504232550,-153.0,0.00016356,2]
[351266175,1738504232560,-153.0,0.00016356,2]
[351266177,1738504232570,-154.4475723,0.00016356,2]
[351266179,1738504232580,-153.5547867,0.00016356,2]
[351266181,1738504232589,-215.6245758,0.00016356,2]
[351266183,1738504232599,-154.4475723,0.00016356,2]
[351266185,1738504232608,-153.0,0.00016356,2]
[351266187,1738504232617,-215.6245758,0.00016356,2]
[351266189,1738504232626,-215.6245758,0.00016356,2]
[351266192,1738504232636,-154.4475723,0.00016356,2]
[351266193,1738504232646,-215.6245758,0.00016356,2]
[351266196,1738504232656,-154.4475723,0.00016356,2]
[351266197,1738504232665,-153.0,0.00016356,2]
[351266200,1738504232674,-154.2101103,0.00016356,2]
[351266202,1738504232684,-183.3002655,0.00016356,2]
[351266203,1738504232693,-153.0,0.00016356,2]
[351266206,1738504232702,-153.0,0.00016356,2]
[351266208,1738504232712,-153.0,0.00016356,2]
[351266209,1738504232721,-153.0,0.00016356,2]
[351266212,1738504232732,-153.0,0.00016356,2]
[351266213,1738504232741,-153.0,0.00016356,2]
[351266215,1738504232750,-153.0,0.00016356,2]
[351266217,1738504232759,-159.0185955,0.00016356,2]
[351266219,1738504232768,-684.33570558,0.00016381,2]
[351266221,1738504232777,-470.65712405,0.000164,2]
[351266223,1738504232787,-10000.0,0.000164,2]
[351266225,1738504232796,-10000.0,0.000164,2]
[351266227,1738504232805,-250.53688382,0.00016428,2]
[351266229,1738504232815,-500.0,0.00016436,2]
[351266231,1738504232824,-500.0,0.00016436,2]
[351266233,1738504232833,-500.0,0.00016436,2]
[351266235,1738504232843,-500.52996007,0.00016436,2]
[351266237,1738504232852,-500.0,0.00016436,2]
[351266239,1738504232861,-500.0,0.00016436,2]
[351266241,1738504232870,-500.0,0.00016436,2]
[351266243,1738504232880,-500.0,0.00016436,2]
[351266245,1738504232890,-500.0,0.00016436,2]
[351266247,1738504232899,-500.0,0.00016436,2]
[351266249,1738504232910,-500.0,0.00016436,2]
[351266251,1738504232919,-381.58109589,0.00016436,2]
[351266253,1738504232929,-463.55965631,0.00016436,2]
[351266255,1738504232938,-500.0,0.00016436,2]
[351266257,1738504232948,-500.0,0.00016436,2]
[351266259,1738504232957,-500.0,0.00016436,2]
[351266261,1738504232967,-500.0,0.00016436,2]
[351266263,1738504232977,-555.7368586,0.00016436,2]
[351266266,1738504232987,-500.0,0.00016436,2]
[351266268,1738504232997,-500.0,0.00016436,2]
[351266269,1738504233007,-500.0,0.00016436,2]
[351266271,1738504233017,-500.0,0.00016436,2]
[351266273,1738504233026,-500.0,0.00016436,2]
[351266275,1738504233037,-471.35265623,0.00016436,2]
[351266277,1738504233046,-500.0,0.00016436,2]
[351266279,1738504233055,-500.0,0.00016436,2]
[351266281,1738504233065,-500.0,0.00016436,2]
[351266283,1738504233074,-500.0,0.00016436,2]
[351266285,1738504233084,-500.0,0.00016436,2]
[351266287,1738504233094,-500.0,0.00016436,2]
[351266289,1738504233104,-500.0,0.00016436,2]
[351266291,1738504233113,-500.0,0.00016436,2]
[351266293,1738504233123,-500.0,0.00016436,2]
[351266295,1738504233133,-165.44149425,0.00016436,2]
[351266297,1738504233144,-500.0,0.00016436,2]
[351266299,1738504233155,-164.15450982,0.00016436,2]
[351266301,1738504233165,-504.98912835,0.00016436,2]
[351266303,1738504233175,-500.0,0.00016436,2]
[351266305,1738504233185,-500.0,0.00016436,2]
[351266307,1738504233196,-602.51503437,0.00016436,2]
[351266309,1738504233207,-500.0,0.00016436,2]
[351266311,1738504233217,-500.0,0.00016436,2]
[351266313,1738504233229,-117885.24776055,0.00016437,4]
[351266315,1738504233240,-204.38814563,0.00016437,2]
[351266317,1738504233251,-500.0,0.00016437,2]
[351266319,1738504233261,-221.32609623,0.00016437,2]
[351266321,1738504233271,-173.89210942,0.00016437,2]
[351266323,1738504233281,-160.0,0.00016437,2]
[351266325,1738504233292,-249.00773448,0.00016438,2]
[351266327,1738504233302,-233.29483238,0.00016438,2]
[351266329,1738504233312,-151.0,0.00016438,2]
[351266330,1738504233322,-151.0,0.00016438,2]
[351266332,1738504233332,-151.0,0.00016438,2]
[351266334,1738504233341,-151.0,0.00016438,2]
[351266337,1738504233351,-151.0,0.00016438,2]
[351266338,1738504233361,-151.843507,0.00016438,2]
[351266340,1738504233370,-151.0,0.00016438,2]
[351266343,1738504233382,-151.0,0.00016438,2]
[351266345,1738504233397,-151.0,0.00016438,2]
[351266347,1738504233408,-151.0,0.00016438,2]
[351266349,1738504233418,-151.0,0.00016438,2]
[351266351,1738504233428,-153.384046,0.00016438,2]
[351266353,1738504233438,-153.384046,0.00016438,2]
[351266355,1738504233447,-153.384046,0.00016438,2]
[351266357,1738504233457,-153.384046,0.00016438,2]
[351266359,1738504233467,-153.384046,0.00016438,2]
[351266361,1738504233478,-153.384046,0.00016438,2]
[351266363,1738504233487,-153.384046,0.00016438,2]
[351266374,1738504233587,-153.384046,0.00016438,2]
[351266376,1738504233602,-153.384046,0.00016438,2]
[351266378,1738504233612,-153.384046,0.00016438,2]
[351266380,1738504233622,-153.384046,0.00016438,2]
[351266382,1738504233632,-153.384046,0.00016438,2]
[351266384,1738504233645,-153.384046,0.00016438,2]
[351266386,1738504233655,-153.384046,0.00016438,2]
[351266388,1738504233664,-151.0,0.00016438,2]
[351266390,1738504233674,-152.671027,0.00016438,2]
[351266392,1738504233684,-151.0,0.00016438,2]
[351266394,1738504233694,-151.0,0.00016438,2]
[351266396,1738504233704,-151.0,0.00016438,2]
[351266398,1738504233714,-151.0,0.00016438,2]
[351266400,1738504233723,-171.888464,0.00016438,2]
[351266402,1738504233733,-151.0,0.00016438,2]
[351266404,1738504233742,-151.0,0.00016438,2]
[351266406,1738504233752,-151.0,0.00016438,2]
[351266408,1738504233761,-151.0,0.00016438,2]
[351266410,1738504233771,-151.0,0.00016438,2]
[351266411,1738504233780,-151.0,0.00016438,2]
[351266412,1738504233790,-151.0,0.00016438,2]
[351266413,1738504233799,-151.0,0.00016438,2]
[351266414,1738504233809,-151.0,0.00016438,2]
[351266415,1738504233818,-151.0,0.00016438,2]
[351266416,1738504233827,-151.0,0.00016438,2]
[351266417,1738504233835,-151.0,0.00016438,2]
[351266418,1738504233845,-153.600231,0.00016438,2]
[351266419,1738504233854,-213.901311,0.00016438,2]
[351266420,1738504233863,-213.901311,0.00016438,2]
[351266421,1738504233872,-213.901311,0.00016438,2]
[351266422,1738504233881,-213.901311,0.00016438,2]
[351266423,1738504233892,-213.901311,0.00016438,2]
[351266424,1738504233901,-213.901311,0.00016438,2]
[351266425,1738504233910,-213.901311,0.00016438,2]
[351266426,1738504233919,-213.901311,0.00016438,2]
[351266427,1738504233929,-213.901311,0.00016438,2]
[351266428,1738504233938,-213.901311,0.00016438,2]
[351266430,1738504233948,-213.901311,0.00016438,2]
[351266431,1738504233957,-213.901311,0.00016438,2]
[351266432,1738504233967,-503.65573583,0.00016438,2]
[351266434,1738504233978,-328.021339,0.00016438,2]
[351266436,1738504233988,-328.021339,0.00016438,2]
[351266438,1738504233998,-328.021339,0.00016438,2]
[351266440,1738504234007,-328.021339,0.00016438,2]
[351266442,1738504234017,-328.021339,0.00016438,2]
[351266444,1738504234026,-328.021339,0.00016438,2]
[351266446,1738504234036,-328.021339,0.00016438,2]
[351266448,1738504234045,-328.021339,0.00016438,2]
[351266450,1738504234054,-328.021339,0.00016438,2]
[351266452,1738504234064,-328.021339,0.00016438,2]
[351266454,1738504234074,-328.021339,0.00016438,2]
[351266456,1738504234084,-328.021339,0.00016438,2]
[351266458,1738504234094,-328.021339,0.00016438,2]
[351266460,1738504234104,-328.021339,0.00016438,2]
[351266462,1738504234113,-151.0,0.00016438,2]
[351266464,1738504234123,-151.0,0.00016438,2]
[351266466,1738504234132,-151.0,0.00016438,2]
[351266468,1738504234143,-151.0,0.00016438,2]
[351266470,1738504234153,-155.419506,0.00016438,2]
[351266472,1738504234166,-509.85656518,0.00016438,2]
[351266474,1738504234174,-151.0,0.00016438,2]
[351266476,1738504234184,-151.0,0.00016438,2]
[351266478,1738504234194,-151.0,0.00016438,2]
[351266480,1738504234204,-151.341923,0.00016438,2]
[351266482,1738504234213,-500.0,0.00016438,2]
[351266484,1738504234222,-500.0,0.00016438,2]
[351266486,1738504234232,-500.0,0.00016438,2]
[351266488,1738504234242,-500.0,0.00016438,2]
[351266490,1738504234253,-500.0,0.00016438,2]
[351266492,1738504234262,-151.0,0.00016438,2]
[351266494,1738504234272,-151.0,0.00016438,2]
[351266496,1738504234282,-268.90758556,0.00016438,2]
[351266498,1738504234292,-500.0,0.00016438,2]
[351266500,1738504234303,-500.0,0.00016438,2]
[351266502,1738504234313,-500.0,0.00016438,2]
[351266504,1738504234323,-500.0,0.00016438,2]
[351266506,1738504234334,-500.0,0.00016438,2]
[351266508,1738504234344,-330.65962034,0.00016438,2]
[351266510,1738504234354,-325.16079662,0.00016438,2]
[351266512,1738504234364,-500.0,0.00016438,2]
[351266514,1738504234374,-500.0,0.00016438,2]
[351266516,1738504234384,-151.0,0.00016438,2]
[351266518,1738504234397,-151.0,0.00016438,2]
[351266520,1738504234407,-151.0,0.00016438,2]
[351266522,1738504234417,-151.0,0.00016438,2]
[351266524,1738504234427,-151.0,0.00016438,2]
[351266526,1738504234438,-151.0,0.00016438,2]
[351266528,1738504234449,-151.0,0.00016438,2]
[351266531,1738504234459,-196.586602,0.00016438,2]
[351266532,1738504234471,-508.69528929,0.00016438,2]
[351266534,1738504234481,-500.0,0.00016438,2]
[351266537,1738504234491,-509.21746881,0.00016438,2]
[351266539,1738504234501,-500.0,0.00016438,2]
[351266541,1738504234511,-507.36618061,0.00016438,2]
[351266543,1738504234520,-500.0,0.00016438,2]
[351266545,1738504234530,-500.0,0.00016438,2]
[351266547,1738504234540,-501.89445966,0.00016438,2]
[351266549,1738504234549,-500.0,0.00016438,2]
[351266551,1738504234559,-500.0,0.00016438,2]
[351266553,1738504234569,-553.11776826,0.00016438,2]
[351266555,1738504234579,-212.5605571,0.00016438,2]
[351266557,1738504234589,-500.0,0.00016438,2]
[351266559,1738504234599,-593.94952581,0.00016438,2]
[351266561,1738504234608,-500.0,0.00016438,2]
[351266563,1738504234617,-500.0,0.00016438,2]
[351266565,1738504234626,-500.0,0.00016438,2]
[351266567,1738504234636,-500.0,0.00016438,2]
[351266569,1738504234647,-501.13571995,0.00016438,2]
[351266571,1738504234656,-500.0,0.00016438,2]
[351266573,1738504234665,-500.0,0.00016438,2]
[351266575,1738504234674,-500.0,0.00016438,2]
[351266577,1738504234683,-500.0,0.00016438,2]
[351266579,1738504234692,-500.0,0.00016438,2]
[351266581,1738504234701,-500.0,0.00016438,2]
[351266583,1738504234710,-625.50886556,0.00016438,2]
[351266585,1738504234719,-500.0,0.00016438,2]
[351266587,1738504234728,-500.0,0.00016438,2]
[351266589,1738504234738,-501.50689531,0.00016438,2]
[351266591,1738504234747,-501.32512999,0.00016438,2]
[351266593,1738504234757,-500.0,0.00016438,2]
[351266595,1738504234766,-500.35040555,0.00016438,2]
[351266597,1738504234775,-500.0,0.00016438,2]
[351266599,1738504234785,-500.0,0.00016438,2]
[351266601,1738504234794,-151.0,0.00016438,2]
[351266603,1738504234803,-360.88914951,0.00016438,2]
[351266953,1738504238266,-139.11085049,0.00016438,2]
[351266955,1738504238276,-151.0,0.00016438,2]
[351266957,1738504238285,-151.0,0.00016438,2]
[351266959,1738504238295,-151.0,0.00016438,2]
[351266961,1738504238305,-500.60379772,0.00016438,2]
[351266963,1738504238315,-196.923318,0.00016438,2]
[351266965,1738504238327,-151.0,0.00016438,2]
[351266967,1738504238338,-151.0,0.00016438,2]
[351266969,1738504238347,-151.0,0.00016438,2]
[351266971,1738504238356,-151.0,0.00016438,2]
[351266973,1738504238366,-500.0,0.00016438,2]
[351266975,1738504238375,-500.0,0.00016438,2]
[351266977,1738504238384,-500.0,0.00016438,2]
[351266979,1738504238394,-151.0,0.00016438,2]
[351266981,1738504238403,-151.0,0.00016438,2]
[351266983,1738504238412,-260.038834,0.00016438,2]
[351266985,1738504238422,-500.97957766,0.00016438,2]
[351266987,1738504238432,-500.0,0.00016438,2]
[351266989,1738504238441,-531.86419752,0.00016438,2]
[351266991,1738504238451,-500.0,0.00016438,2]
[351266993,1738504238460,-504.27543403,0.00016438,2]
[351266995,1738504238470,-500.0,0.00016438,2]
[351266997,1738504238479,-373.65965282,0.00016438,2]
[351267000,1738504238492,-126.34034718,0.00016438,2]
[351267002,1738504238501,-500.0,0.00016438,2]
[351267004,1738504238511,-500.0,0.00016438,2]
[351267006,1738504238520,-500.0,0.00016438,2]
[351267008,1738504238529,-527.63245937,0.00016438,2]
[351267010,1738504238538,-500.0,0.00016438,2]
[351267012,1738504238547,-500.0,0.00016438,2]
[351267014,1738504238557,-631.22213434,0.00016438,2]
[351267016,1738504238566,-500.0,0.00016438,2]
[351267018,1738504238575,-500.0,0.00016438,2]
[351267019,1738504238585,-500.0,0.00016438,2]
[351267021,1738504238594,-151.0,0.00016438,2]
[351267024,1738504238603,-500.0,0.00016438,2]
[351267026,1738504238612,-151.0,0.00016438,2]
[351267027,1738504238622,-205.053427,0.00016438,2]
[351267030,1738504238631,-500.0,0.00016438,2]
[351267031,1738504238640,-500.0,0.00016438,2]
[351267033,1738504238650,-500.0,0.00016438,2]
[351267035,1738504238660,-480.67277355,0.00016438,2]
[351267037,1738504238670,-500.0,0.00016438,2]
[351267040,1738504238680,-500.0,0.00016438,2]
[351267042,1738504238689,-500.0,0.00016438,2]
[351267044,1738504238699,-356.11560499,0.00016438,2]
[351267167,1738504240628,-143.88439501,0.00016438,2]
[351267169,1738504240638,-500.0,0.00016438,2]
[351267171,1738504240651,-171.00333502,0.00016438,2]
[351267411,1738504243190,-101.81406738,0.00016438,2]